[Event "WYCC U14 Girls 2019"]
[Site "Mumbai"]
[Date "2019.10.12"]
[Round "11.3"]
[White "Divya Deshmukh"]
[Black "Nasyrova, Ekaterina"]
[Result "1-0"]
[ECO "D37"]
[WhiteElo "2358"]
[BlackElo "2137"]
[Annotator "ChessBase"]
[PlyCount "79"]
[EventDate "2019.10.02"]
[EventType "swiss"]
[EventCountry "IND"]
[SourceTitle "playchess.com"]
[Source "ChessBase"]
[SourceQuality "1"]
[TimeControl "40/5400+30:1800+30"]

1. d4 {[%emt 0:00:00]} d5 {[%emt 0:00:00]} 2. c4 {[%emt 0:00:00]} e6 {[%emt 0:00:00]} 3. Nc3 {[%emt 0:00:00]} Nf6 {[%emt 0:00:00]} 4. Nf3 {[%emt 0:00:00]} dxc4 {[%emt 0:01:25]} 5. e3 {[%emt 0:02:33]} c5 {[%emt 0:00:28]} 6. Bxc4 {[%emt 0:00:11]} a6 {[%emt 0:03:31]} 7. a4 {[%emt 0:02:20]} Nc6 {[%emt 0:00:25]} 8. O-O {[%emt 0:00:44]} Be7 {[%emt 0:07:06]} 9. b3 {[%emt 0:09:51]} O-O {[%emt 0:01:10]} 10. Bb2 {[%emt 0:00:29]} cxd4 {[%emt 0:05:21]} 11. Nxd4 {[%emt 0:09:18]} Na5 {[%emt 0:03:09]} 12. Nf3 {[%emt 0:09:19]} Nxc4 {[%emt 0:06:01]} 13. bxc4 {[%emt 0:00:50]} Qa5 {[%emt 0:05:12]} 14. Ne2 {[%emt 0:05:29]} Rd8 {[%emt 0:04:39]} 15. Qc2 {[%emt 0:01:50]} Bd7 {[%emt 0:03:52]} 16. Bc3 {[%emt 0:00:30]} Qc7 {[%emt 0:00:30]} 17. Be5 {[%emt 0:00:30]} Bd6 {[%emt 0:12:28]} 18. Bxf6 {[%emt 0:19:24]} gxf6 {[%emt 0:00:21]} 19. Qb2 {[%emt 0:00:03]} Be7 {[%emt 0:20:51]} 20. Rfc1 {[%emt 0:14:47]} Bc6 {[%emt 0:02:36]} 21. Nfd4 {[%emt 0:00:58]} Be4 {[%emt 0:00:52]} 22. Ng3 {[%emt 0:00:58]} Bg6 {[%emt 0:01:01]} 23. h4 {[%emt 0:09:41]} h6 {[%emt 0:00:49]} 24. c5 {[%emt 0:03:37]} Rd5 {[%emt 0:05:17]} 25. Nde2 {[%emt 0:02:22]} Rad8 26. Nf4 {[%emt 0:01:30]} Rd2 {[%emt 0:03:32]} 27. Qb3 {[%emt 0:00:58]} Bh7 {[%emt 0:00:48]} 28. a5 {[%emt 0:02:43]} Qc6 {[%emt 0:07:07]} 29. Ra4 {[%emt 0:01:03]} Bd3 {[%emt 0:02:50]} 30. Nfh5 {[%emt 0:02:26]} Bb5 {[%emt 0:01:02]} 31. Rf4 {[%emt 0:00:03]} R8d3 {[%emt 0:00:00]} 32. Qb1 {[%emt 0:00:30]} f5 {[%emt 0:00:00]} 33. Qa1 {[%emt 0:00:30]} f6 {[%emt 0:00:00]} 34. Nxf6+ {[%emt 0:00:30]} Kf7 {[%emt 0:00:00]} 35. Nfe4 {[%emt 0:00:30]} Qd7 {[%emt 0:00:00]} 36. Nxd2 {[%emt 0:00:30]} Rxd2 {[%emt 0:00:00]} 37. Nh5 {[%emt 0:00:30]} Qd3 {[%emt 0:00:00]} 38. Qg7+ {[%emt 0:00:30]} Ke8 {[%emt 0:00:00]} 39. Qg8+ {[%emt 0:00:30]} Kd7 {[%emt 0:00:00]} 40. Rd4+ {[%emt 0:00:30]} 1-0

[Event "WYCC U14 Girls 2019"]
[Site "Mumbai"]
[Date "2019.10.12"]
[Round "11.4"]
[White "Allahverdiyeva, Ayan"]
[Black "Bhagyashree Patil"]
[Result "1-0"]
[ECO "C77"]
[WhiteElo "2160"]
[BlackElo "1802"]
[Annotator "ChessBase"]
[PlyCount "73"]
[EventDate "2019.10.02"]
[EventType "swiss"]
[EventCountry "IND"]
[SourceTitle "playchess.com"]
[Source "ChessBase"]
[SourceQuality "1"]
[TimeControl "40/5400+30:1800+30"]

1. e4 {[%emt 0:01:07]} e5 {[%emt 0:00:00]} 2. Nf3 {[%emt 0:00:15]} Nc6 {[%emt 0:00:00]} 3. Bb5 {[%emt 0:00:15]} a6 {[%emt 0:00:00]} 4. Ba4 {[%emt 0:00:05]} Nf6 {[%emt 0:00:05]} 5. d3 {[%emt 0:00:28]} b5 {[%emt 0:02:54]} 6. Bb3 {[%emt 0:01:28]} Be7 {[%emt 0:02:47]} 7. g4 {[%emt 0:02:32]} h6 {[%emt 0:24:44]} 8. Nc3 {[%emt 0:02:00]} d6 {[%emt 0:03:44]} 9. g5 {[%emt 0:00:30]} hxg5 {[%emt 0:01:55]} 10. Nxg5 {[%emt 0:00:13]} Rf8 {[%emt 0:00:52]} 11. Be3 {[%emt 0:00:43]} Na5 {[%emt 0:01:56]} 12. Rg1 {[%emt 0:04:30]} Nxb3 {[%emt 0:02:06]} 13. axb3 {[%emt 0:00:08]} Bb7 {[%emt 0:01:33]} 14. Qf3 {[%emt 0:01:33]} Qd7 {[%emt 0:03:15]} 15. Nd5 {[%emt 0:06:46]} Nxd5 {[%emt 0:05:52]} 16. exd5 {[%emt 0:00:07]} Bxg5 {[%emt 0:00:09]} 17. Rxg5 {[%emt 0:00:50]} f6 {[%emt 0:01:50]} 18. Rg6 {[%emt 0:03:55]} O-O-O {[%emt 0:02:05]} 19. Qg2 {[%emt 0:02:11]} Rf7 {[%emt 0:01:35]} 20. c4 {[%emt 0:00:38]} c5 {[%emt 0:06:29]} 21. b4 {[%emt 0:06:25]} bxc4 {[%emt 0:07:39]} 22. bxc5 {[%emt 0:05:38]} dxc5 {[%emt 0:01:34]} 23. dxc4 {[%emt 0:00:49]} Qc7 {[%emt 0:00:06]} 24. Bd2 {[%emt 0:06:39]} Rdd7 {[%emt 0:02:21]} 25. Ba5 {[%emt 0:01:06]} Qd6 {[%emt 0:00:26]} 26. Qh3 {[%emt 0:00:15]} Kb8 {[%emt 0:01:14]} 27. Rg3 {[%emt 0:01:31]} Bc8 {[%emt 0:00:17]} 28. Qe6 {[%emt 0:02:00]} e4 {[%emt 0:15:51]} 29. Rb3+ {[%emt 0:00:37]} Ka8 {[%emt 0:00:11]} 30. Qxd6 {[%emt 0:02:11]} Rxd6 {[%emt 0:00:09]} 31. Bb6 {[%emt 0:00:04]} f5 {[%emt 0:03:38]} 32. Ra5 {[%emt 0:04:14]} f4 {[%emt 0:01:39]} 33. Rxc5 {[%emt 0:00:11]} Bg4 {[%emt 0:04:14]} 34. h3 {[%emt 0:01:35]} Bf5 {[%emt 0:00:20]} 35. Bc7 {[%emt 0:00:07]} Rh6 {[%emt 0:01:15]} 36. Bxf4 {[%emt 0:00:56]} Rxh3 {[%emt 0:00:13]} 37. Rb6 {[%emt 0:01:52]} 1-0

[Event "WYCC U14 Girls 2019"]
[Site "Mumbai"]
[Date "2019.10.12"]
[Round "11.5"]
[White "Omonova, Umida"]
[Black "Velpula Sarayu"]
[Result "1/2-1/2"]
[ECO "B36"]
[WhiteElo "2078"]
[BlackElo "1717"]
[Annotator "NA"]
[PlyCount "70"]
[EventDate "2019.10.02"]
[EventType "swiss"]
[EventCountry "IND"]
[SourceTitle "playchess.com"]
[Source "ChessBase"]
[SourceQuality "1"]
[TimeControl "40/5400+30:1800+30"]

1. e4 c5 2. Nf3 g6 3. d4 cxd4 4. Nxd4 Nc6 5. c4 Nf6 6. Nc3 d6 7. Be2 Nxd4 8. Qxd4 Bg7 9. Be3 O-O 10. Qd2 a5 11. O-O a4 12. Rad1 Be6 13. f3 Qa5 14. Nd5 Nxd5 15. exd5 Qxd2 16. Rxd2 Bd7 17. Re1 a3 18. b3 Bc3 19. Bd3 Rfe8 20. Red1 Bxd2 21. Rxd2 e6 22. dxe6 Rxe6 23. Bf2 Bc6 24. Kf1 Rc8 25. Bd4 Rb8 26. Bf2 Rc8 27. Bd4 Rb8 28. Bb6 Rbe8 29. Ba5 d5 30. Bb4 dxc4 31. Bxc4 Re5 32. Bxa3 b5 33. Bd3 Rd8 34. Bb4 Red5 35. Ke2 Re8+ 1/2-1/2

[Event "WYCC U14 Girls 2019"]
[Site "Mumbai"]
[Date "2019.10.12"]
[Round "11.6"]
[White "Ince, Safiye Oyku"]
[Black "Poliakova, Varvara"]
[Result "0-1"]
[ECO "C26"]
[WhiteElo "1840"]
[BlackElo "2042"]
[Annotator "NA"]
[PlyCount "112"]
[EventDate "2019.10.02"]
[EventType "swiss"]
[EventCountry "IND"]
[SourceTitle "playchess.com"]
[Source "ChessBase"]
[SourceQuality "1"]
[TimeControl "40/5400+30:1800+30"]

1. e4 {[%emt 0:00:00]} e5 {[%emt 0:00:00]} 2. Nc3 {[%emt 0:00:00]} Nf6 {[%emt 0:00:00]} 3. g3 {[%emt 0:00:00]} Bc5 {[%emt 0:02:57]} 4. Bg2 {[%emt 0:00:00]} Nc6 {[%emt 0:03:25]} 5. d3 {[%emt 0:00:12]} O-O {[%emt 0:00:55]} 6. Nge2 {[%emt 0:00:08]} Re8 {[%emt 0:01:48]} 7. O-O {[%emt 0:00:30]} a6 {[%emt 0:02:23]} 8. h3 {[%emt 0:03:07]} Ne7 {[%emt 0:13:10]} 9. Bg5 {[%emt 0:12:01]} Ng6 {[%emt 0:07:29]} 10. Nd5 {[%emt 0:00:10]} c6 {[%emt 0:01:09]} 11. Nxf6+ {[%emt 0:01:59]} gxf6 {[%emt 0:01:31]} 12. Be3 {[%emt 0:00:03]} Bb6 {[%emt 0:04:17]} 13. Bxb6 {[%emt 0:01:18]} Qxb6 {[%emt 0:00:02]} 14. d4 {[%emt 0:00:07]} d6 {[%emt 0:02:25]} 15. f4 {[%emt 0:01:03]} exd4 {[%emt 0:04:23]} 16. Nxd4 {[%emt 0:00:10]} f5 {[%emt 0:01:51]} 17. exf5 {[%emt 0:15:59]} Bxf5 {[%emt 0:00:25]} 18. Rf2 {[%emt 0:00:10]} Bd7 {[%emt 0:04:44]} 19. f5 {[%emt 0:00:14]} Ne5 {[%emt 0:02:20]} 20. f6 {[%emt 0:03:17]} Kh8 {[%emt 0:05:46]} 21. Be4 {[%emt 0:11:38]} Rg8 {[%emt 0:07:57]} 22. Kh2 {[%emt 0:07:51]} Rg5 {[%emt 0:03:22]} 23. Rf4 {[%emt 0:01:27]} Ng6 {[%emt 0:04:52]} 24. h4 {[%emt 0:03:06]} Re5 {[%emt 0:03:49]} 25. Bxg6 {[%emt 0:01:13]} hxg6 {[%emt 0:00:41]} 26. Qd2 {[%emt 0:02:32]} Kh7 {[%emt 0:01:15]} 27. h5 {[%emt 0:06:27]} Rxh5+ {[%emt 0:02:35]} 28. Rh4 {[%emt 0:00:05]} Qc5 {[%emt 0:04:50]} 29. Re1 {[%emt 0:00:49]} Rxh4+ {[%emt 0:00:34]} 30. gxh4 {[%emt 0:00:05]} Re8 {[%emt 0:00:44]} 31. Rxe8 {[%emt 0:00:58]} Bxe8 {[%emt 0:00:01]} 32. Nf3 {[%emt 0:00:09]} Bd7 {[%emt 0:02:28]} 33. Qe2 {[%emt 0:00:22]} Kg8 {[%emt 0:02:00]} 34. Qd2 {[%emt 0:00:38]} Kh7 {[%emt 0:00:00]} 35. Qe2 {[%emt 0:00:22]} Kg8 {[%emt 0:01:00]} 36. Kg3 {[%emt 0:04:17]} Be6 {[%emt 0:01:04]} 37. Qd2 {[%emt 0:00:56]} Kf8 {[%emt 0:05:51]} 38. Kh2 {[%emt 0:00:00]} Kg8 {[%emt 0:00:00]} 39. Kg3 {[%emt 0:01:00]} Kf8 {[%emt 0:01:00]} 40. Kh2 {[%emt 0:00:00]} Kg8 {[%emt 0:00:00]} 41. Kg3 {[%emt 0:31:00]} Kf8 {[%emt 0:31:00]} 42. Qh6+ {[%emt 0:02:27]} Ke8 {[%emt 0:00:01]} 43. Qh8+ {[%emt 0:00:17]} Kd7 {[%emt 0:00:02]} 44. Qf8 {[%emt 0:00:19]} Kc7 {[%emt 0:00:56]} 45. Qe7+ {[%emt 0:00:45]} Kb6 {[%emt 0:00:23]} 46. Ng5 {[%emt 0:01:46]} Qe5+ {[%emt 0:03:32]} 47. Kf3 {[%emt 0:04:16]} Bd5+ {[%emt 0:01:02]} 48. Kf2 {[%emt 0:00:02]} Qxb2 {[%emt 0:00:00]} 49. Nxf7 {[%emt 0:00:00]} Qxc2+ {[%emt 0:00:00]} 50. Kg3 {[%emt 0:00:00]} Qg2+ {[%emt 0:00:00]} 51. Kf4 {[%emt 0:00:00]} Qf3+ {[%emt 0:00:00]} 52. Kg5 {[%emt 0:00:00]} Qh5+ {[%emt 0:00:00]} 53. Kf4 {[%emt 0:00:00]} Bxf7 {[%emt 0:00:00]} 54. Qxd6 {[%emt 0:00:00]} Qxh4+ {[%emt 0:00:00]} 55. Ke3 {[%emt 0:00:00]} Qg5+ {[%emt 0:00:00]} 56. Kf2 {[%emt 0:00:00]} Qc5+ {[%emt 0:00:00]} 0-1

[Event "WYCC U14 Girls 2019"]
[Site "Mumbai"]
[Date "2019.10.12"]
[Round "11.7"]
[White "Swara Lakshmi S Nair"]
[Black "Wikar, Martyna"]
[Result "0-1"]
[ECO "B90"]
[WhiteElo "1536"]
[BlackElo "1969"]
[Annotator "NA"]
[PlyCount "156"]
[EventDate "2019.10.02"]
[EventType "swiss"]
[EventCountry "IND"]
[SourceTitle "playchess.com"]
[Source "ChessBase"]
[SourceQuality "1"]
[TimeControl "40/5400+30:1800+30"]

1. e4 c5 2. Nf3 d6 3. d4 cxd4 4. Nxd4 Nf6 5. Nc3 a6 6. Bc4 e6 7. O-O b5 8. Bb3 Be7 9. f4 O-O 10. Qf3 Qc7 11. a3 Nc6 12. Be3 Bb7 13. Rad1 Rfd8 14. f5 Nxd4 15. Bxd4 e5 16. Be3 Bc6 17. Bg5 Qb6+ 18. Kh1 Rac8 19. Bxf6 Bxf6 20. Bd5 Be8 21. Bb3 Bc6 22. Qh5 Rd7 23. Bd5 Qd8 24. Rf2 h6 25. Bxc6 Rxc6 26. Nd5 Rc4 27. Re2 Kh7 28. c3 a5 29. Re3 Bg5 30. Re2 Bf6 31. Re3 a4 32. Rde1 Bh4 33. Rd1 Bg5 34. Re2 Bf6 35. Rf1 Rb7 36. Rf3 Rd7 37. Rh3 Rb7 38. Re1 Rd7 39. Re2 Rb7 40. Re1 Ra7 41. Rd3 Rb7 42. Qf3 Rd7 43. Red1 Rc5 44. Nb4 Bg5 45. Rd5 Kg8 46. Qd3 Qb6 47. Rxd6 Rxd6 48. Qxd6 Qxd6 49. Rxd6 Rc4 50. Nd3 Rxe4 51. Kg1 Re2 52. Kf1 Rd2 53. Rd5 e4 54. Nb4 Rxb2 55. Rxb5 e3 56. Re5 Rb3 57. h4 Bxh4 58. Rxe3 Rxa3 59. Re8+ Kh7 60. Ra8 Rxc3 61. Rxa4 Rc4 62. Ke2 Be7 63. Ra7 Bxb4 64. Rxf7 Kg8 65. Rb7 Bd6 66. Rb6 Be5 67. Rg6 Bf6 68. g4 Kf7 69. Kf3 Rc3+ 70. Kf2 Ke7 71. Ke2 Kd6 72. Kd2 Ra3 73. Ke2 Ke5 74. Kf1 Ra2 75. Kg1 Kf4 76. Kf1 Ke3 77. Kg1 Kf3 78. Kh1 Kg3 0-1

[Event "WYCC U14 Girls 2019"]
[Site "Mumbai"]
[Date "2019.10.12"]
[Round "11.8"]
[White "Ishvi Aggarwal"]
[Black "Kurmangaliyeva, Liya"]
[Result "0-1"]
[ECO "D47"]
[WhiteElo "1935"]
[BlackElo "1936"]
[Annotator "NA"]
[PlyCount "98"]
[EventDate "2019.10.02"]
[EventType "swiss"]
[EventCountry "IND"]
[SourceTitle "playchess.com"]
[Source "ChessBase"]
[SourceQuality "1"]
[TimeControl "40/5400+30:1800+30"]

1. d4 {[%emt 0:00:00]} d5 {[%emt 0:00:00]} 2. c4 {[%emt 0:00:00]} c6 {[%emt 0:00:10]} 3. Nf3 {[%emt 0:00:00]} Nf6 {[%emt 0:00:20]} 4. Nc3 {[%emt 0:00:00]} e6 {[%emt 0:00:25]} 5. e3 {[%emt 0:00:00]} Nbd7 {[%emt 0:00:18]} 6. Bd3 {[%emt 0:00:00]} dxc4 {[%emt 0:01:00]} 7. Bxc4 {[%emt 0:00:00]} b5 {[%emt 0:00:17]} 8. Bd3 {[%emt 0:00:50]} Bb7 {[%emt 0:01:16]} 9. O-O {[%emt 0:00:18]} Be7 {[%emt 0:02:17]} 10. e4 {[%emt 0:05:56]} a6 {[%emt 0:03:24]} 11. e5 {[%emt 0:05:38]} Nd5 {[%emt 0:01:38]} 12. Nxd5 {[%emt 0:00:07]} cxd5 {[%emt 0:02:17]} 13. Be3 {[%emt 0:03:51]} O-O {[%emt 0:05:35]} 14. Ne1 {[%emt 0:03:33]} f5 {[%emt 0:09:00]} 15. exf6 Bxf6 {[%emt 0:01:07]} 16. Qh5 {[%emt 0:10:53]} g6 {[%emt 0:02:59]} 17. Qg4 {[%emt 0:00:06]} Qe7 {[%emt 0:06:22]} 18. Nf3 {[%emt 0:04:08]} Rae8 {[%emt 0:10:18]} 19. Rac1 {[%emt 0:02:45]} Bc8 {[%emt 0:10:48]} 20. Qg3 {[%emt 0:09:10]} e5 {[%emt 0:11:58]} 21. dxe5 {[%emt 0:00:45]} Nxe5 {[%emt 0:08:02]} 22. Bc5 {[%emt 0:05:23]} Qd8 {[%emt 0:00:14]} 23. Nxe5 {[%emt 0:01:59]} Bxe5 {[%emt 0:00:09]} 24. f4 {[%emt 0:00:34]} Bxb2 {[%emt 0:08:02]} 25. Rc2 {[%emt 0:00:54]} Qf6 {[%emt 0:02:42]} 26. Bxf8 {[%emt 0:01:42]} Rxf8 {[%emt 0:00:05]} 27. f5 {[%emt 0:16:05]} Bd7 {[%emt 0:02:57]} 28. Rf3 {[%emt 0:21:01]} Be5 {[%emt 0:01:35]} 29. Qe1 {[%emt 0:05:08]} g5 {[%emt 0:02:17]} 30. Re2 {[%emt 0:01:01]} Bf4 {[%emt 0:00:52]} 31. g3 {[%emt 0:00:54]} Bd6 {[%emt 0:00:12]} 32. h3 {[%emt 0:01:44]} Kh8 {[%emt 0:01:41]} 33. Rf1 {[%emt 0:00:49]} Qd4+ {[%emt 0:00:42]} 34. Kh1 {[%emt 0:00:59]} Qxd3 {[%emt 0:00:28]} 35. Re3 {[%emt 0:00:34]} Qd4 {[%emt 0:00:27]} 36. Re7 {[%emt 0:00:35]} Bxe7 {[%emt 0:00:42]} 37. Qxe7 {[%emt 0:00:01]} Qg7 {[%emt 0:00:07]} 38. Qd6 {[%emt 0:00:20]} Bxf5 {[%emt 0:00:31]} 39. Kg1 {[%emt 0:00:24]} Qf6 {[%emt 0:02:14]} 40. Qxd5 {[%emt 0:00:20]} Kg7 {[%emt 0:02:41]} 41. g4 {[%emt 0:06:55]} Be4 {[%emt 0:01:48]} 42. Rxf6 {[%emt 0:01:24]} Bxd5 {[%emt 0:00:07]} 43. Rxa6 {[%emt 0:00:05]} Rf3 {[%emt 0:00:27]} 44. Rb6 {[%emt 0:00:40]} Rg3+ {[%emt 0:00:16]} 45. Kf2 {[%emt 0:00:24]} Rg2+ {[%emt 0:00:08]} 46. Ke3 {[%emt 0:00:10]} Bc4 {[%emt 0:00:12]} 47. Rb7+ {[%emt 0:00:31]} Kf6 {[%emt 0:00:15]} 48. Rxh7 {[%emt 0:00:27]} Rxa2 {[%emt 0:00:18]} 49. Rh6+ {[%emt 0:00:49]} Ke5 {[%emt 0:09:43] Kd4+} 0-1

[Event "WYCC U14 Girls 2019"]
[Site "Mumbai"]
[Date "2019.10.12"]
[Round "11.9"]
[White "Ghomi, Parnian"]
[Black "Obada, Ema"]
[Result "1-0"]
[ECO "A45"]
[WhiteElo "1948"]
[BlackElo "1987"]
[Annotator "NA"]
[PlyCount "107"]
[EventDate "2019.10.02"]
[EventType "swiss"]
[EventCountry "IND"]
[SourceTitle "playchess.com"]
[Source "ChessBase"]
[SourceQuality "1"]
[TimeControl "40/5400+30:1800+30"]

1. d4 {[%emt 0:00:00]} Nf6 {[%emt 0:00:00]} 2. Bf4 {[%emt 0:00:00]} e6 {[%emt 0:00:00]} 3. e3 {[%emt 0:00:00]} b6 {[%emt 0:00:00]} 4. Nf3 {[%emt 0:00:31]} Bb7 {[%emt 0:00:00]} 5. Nbd2 {[%emt 0:00:29]} Be7 {[%emt 0:00:17]} 6. Bd3 {[%emt 0:00:06]} c5 {[%emt 0:00:27]} 7. c3 {[%emt 0:00:08]} Nc6 {[%emt 0:00:30]} 8. h3 {[%emt 0:02:09]} Rc8 {[%emt 0:05:38]} 9. O-O {[%emt 0:00:32]} O-O {[%emt 0:00:25]} 10. Re1 {[%emt 0:01:51]} d5 {[%emt 0:05:48]} 11. Qe2 {[%emt 0:03:25]} Bd6 {[%emt 0:11:07]} 12. Ne5 {[%emt 0:02:33]} Qc7 {[%emt 0:00:23]} 13. Ng4 {[%emt 0:05:03]} Nxg4 {[%emt 0:08:56]} 14. Bxd6 {[%emt 0:00:11]} Qxd6 {[%emt 0:00:07]} 15. Qxg4 {[%emt 0:00:09]} e5 {[%emt 0:01:36]} 16. Rad1 {[%emt 0:04:32]} e4 {[%emt 0:02:39]} 17. Bb1 {[%emt 0:01:46]} f5 {[%emt 0:01:27]} 18. Qe2 {[%emt 0:02:20]} Rce8 {[%emt 0:01:38]} 19. dxc5 {[%emt 0:02:46]} bxc5 {[%emt 0:00:14]} 20. Qb5 {[%emt 0:00:56]} Rb8 {[%emt 0:14:06]} 21. Nb3 {[%emt 0:09:32]} Ba8 {[%emt 0:04:22]} 22. Qxc5 {[%emt 0:02:21]} Qxc5 {[%emt 0:00:04]} 23. Nxc5 {[%emt 0:00:08]} Rxb2 {[%emt 0:00:16]} 24. Rxd5 {[%emt 0:02:52]} Ne7 {[%emt 0:06:39]} 25. Rd7 {[%emt 0:00:44]} Nd5 {[%emt 0:01:59]} 26. Na4 {[%emt 0:02:49]} Rd2 {[%emt 0:04:22]} 27. c4 {[%emt 0:07:15]} Bc6 {[%emt 0:00:19]} 28. Rxa7 {[%emt 0:01:12]} Nb4 {[%emt 0:02:30]} 29. Nc5 {[%emt 0:11:23]} Rc8 {[%emt 0:07:35]} 30. Nb3 {[%emt 0:01:54]} Rb2 {[%emt 0:00:11]} 31. Nd4 {[%emt 0:00:17]} g6 {[%emt 0:01:35]} 32. a3 {[%emt 0:02:47]} Nd3 {[%emt 0:03:23]} 33. Bxd3 {[%emt 0:00:16]} exd3 {[%emt 0:00:04]} 34. Nxc6 {[%emt 0:00:25]} Rxc6 {[%emt 0:01:02]} 35. Rd1 {[%emt 0:00:17]} d2 {[%emt 0:03:28]} 36. Rd7 {[%emt 0:01:10]} Rxc4 {[%emt 0:00:58]} 37. R7xd2 {[%emt 0:00:07]} Rb3 {[%emt 0:00:19]} 38. Rd3 {[%emt 0:00:27]} Rb2 {[%emt 0:00:13]} 39. Rd7 {[%emt 0:00:40]} Rc3 {[%emt 0:01:28]} 40. Ra7 {[%emt 0:00:08]} Rb8 {[%emt 0:00:16]} 41. a4 {[%emt 0:30:13]} Rc4 {[%emt 0:30:51]} 42. a5 {[%emt 0:00:16]} f4 {[%emt 0:00:26]} 43. exf4 {[%emt 0:00:44]} Rxf4 {[%emt 0:00:04]} 44. Rd2 {[%emt 0:00:47]} Ra4 {[%emt 0:00:44]} 45. a6 {[%emt 0:01:47]} Rc8 {[%emt 0:00:03]} 46. Rdd7 {[%emt 0:01:08]} Ra2 {[%emt 0:00:19]} 47. Rg7+ {[%emt 0:00:38]} Kh8 {[%emt 0:00:17]} 48. Rxh7+ {[%emt 0:00:06]} Kg8 {[%emt 0:00:03]} 49. Rhg7+ {[%emt 0:01:01]} Kf8 {[%emt 0:00:17]} 50. Rxg6 {[%emt 0:00:14]} Rc1+ {[%emt 0:00:05]} 51. Kh2 {[%emt 0:00:03]} Rxf2 {[%emt 0:00:15]} 52. Rb7 {[%emt 0:00:41]} Ra1 {[%emt 0:00:16]} 53. a7 {[%emt 0:00:05]} Rfa2 {[%emt 0:00:10]} 54. Rc6 {[%emt 0:00:07]} 1-0

[Event "WYCC U14 Girls 2019"]
[Site "Mumbai"]
[Date "2019.10.12"]
[Round "11.10"]
[White "Dhyana Patel"]
[Black "Alekseenko, Mariya"]
[Result "1/2-1/2"]
[ECO "B31"]
[WhiteElo "1995"]
[BlackElo "1767"]
[Annotator "NA"]
[PlyCount "138"]
[EventDate "2019.10.02"]
[EventType "swiss"]
[EventCountry "IND"]
[SourceTitle "playchess.com"]
[Source "ChessBase"]
[SourceQuality "1"]
[TimeControl "40/5400+30:1800+30"]

1. e4 {[%emt 0:00:00]} c5 {[%emt 0:00:00]} 2. Nf3 {[%emt 0:00:00]} Nc6 {[%emt 0:00:00]} 3. Bb5 {[%emt 0:00:00]} g6 {[%emt 0:00:00]} 4. Bxc6 {[%emt 0:00:00]} dxc6 {[%emt 0:00:00]} 5. h3 {[%emt 0:00:17]} Bg7 {[%emt 0:00:04]} 6. d3 {[%emt 0:00:08]} Nh6 {[%emt 0:01:27]} 7. Nc3 {[%emt 0:01:23]} f6 {[%emt 0:00:10]} 8. Be3 {[%emt 0:03:26]} b6 {[%emt 0:00:06]} 9. Qd2 {[%emt 0:00:27]} Nf7 {[%emt 0:00:06]} 10. Nh2 {[%emt 0:03:10]} e5 {[%emt 0:07:52]} 11. O-O-O {[%emt 0:02:06]} Qe7 {[%emt 0:04:24]} 12. Kb1 {[%emt 0:01:40]} Be6 {[%emt 0:01:09]} 13. f4 {[%emt 0:00:25]} O-O-O {[%emt 0:01:55]} 14. g4 {[%emt 0:06:30]} exf4 {[%emt 0:09:00]} 15. Bxf4 {[%emt 0:00:07]} Nd6 {[%emt 0:00:13]} 16. Qg2 {[%emt 0:02:17]} Kb7 {[%emt 0:03:40]} 17. Rhe1 {[%emt 0:00:35]} Rhe8 {[%emt 0:00:00]} 18. Nf3 {[%emt 0:00:00]} Nf7 {[%emt 0:00:00]} 19. Nd2 {[%emt 0:00:00]} Ne5 {[%emt 0:00:00]} 20. Nf3 {[%emt 0:00:00]} Bh8 {[%emt 0:00:00]} 21. Bxe5 {[%emt 0:00:00]} fxe5 {[%emt 0:00:00]} 22. Rf1 {[%emt 0:00:00]} c4 {[%emt 0:00:00]} 23. dxc4 {[%emt 0:00:00]} Bxc4 {[%emt 0:00:00]} 24. Rfe1 {[%emt 0:32:31]} Rf8 {[%emt 0:18:55]} 25. Nd2 {[%emt 0:01:53]} Be6 {[%emt 0:00:22]} 26. Qe2 {[%emt 0:01:14]} Qh4 {[%emt 0:00:50]} 27. Rh1 {[%emt 0:00:00]} Bg7 {[%emt 0:00:30]} 28. Rde1 {[%emt 0:08:02]} Qf2 {[%emt 0:00:30]} 29. Rh2 {[%emt 0:00:30]} Qxe2 {[%emt 0:00:30]} 30. Rhxe2 {[%emt 0:00:30]} Bh6 {[%emt 0:05:19]} 31. Rd1 {[%emt 0:17:27]} Rf7 {[%emt 0:00:26]} 32. b3 {[%emt 0:06:17]} Rfd7 {[%emt 0:00:14]} 33. Kb2 {[%emt 0:00:25]} Bf4 {[%emt 0:00:28]} 34. Ncb1 {[%emt 0:01:47]} b5 {[%emt 0:00:58]} 35. Kc3 {[%emt 0:00:44]} a5 {[%emt 0:01:25]} 36. a3 {[%emt 0:04:17]} h5 {[%emt 0:00:29]} 37. Kb2 {[%emt 0:01:00]} g5 {[%emt 0:00:50]} 38. Rg2 {[%emt 0:01:37]} Rd4 {[%emt 0:04:10]} 39. Kc1 {[%emt 0:00:45]} c5 {[%emt 0:01:01]} 40. Re1 {[%emt 0:01:00]} b4 {[%emt 0:02:34]} 41. Ree2 {[%emt 0:32:21]} R4d7 {[%emt 0:36:07]} 42. Kb2 {[%emt 0:05:31]} hxg4 {[%emt 0:00:54]} 43. hxg4 {[%emt 0:00:08]} Rh7 {[%emt 0:00:00]} 44. Nf3 {[%emt 0:00:30]} Rh5 45. Ne1 Rh4 {[%emt 0:01:14]} 46. Nd3 {[%emt 0:00:00]} Bxg4 {[%emt 0:00:00]} 47. Ref2 {[%emt 0:00:00]} Rxd3 {[%emt 0:00:00]} 48. cxd3 {[%emt 0:00:00]} Bh3 {[%emt 0:00:00]} 49. Rg1 {[%emt 0:00:00]} g4 {[%emt 0:00:00]} 50. axb4 {[%emt 0:00:00]} axb4 {[%emt 0:00:00]} 51. Kc2 {[%emt 0:00:00]} g3 {[%emt 0:00:00]} 52. Rf3 {[%emt 0:00:00]} Rg4 {[%emt 0:00:00]} 53. Nd2 {[%emt 0:00:00]} Rg8 {[%emt 0:00:00]} 54. Nb1 {[%emt 0:00:00]} Rg4 {[%emt 0:00:00]} 55. Nd2 {[%emt 0:00:00]} Rg8 {[%emt 0:00:00]} 56. Nf1 {[%emt 0:00:00]} Bg4 {[%emt 0:00:00]} 57. Rfxg3 {[%emt 0:00:00]} Bxg3 {[%emt 0:00:00]} 58. Rxg3 {[%emt 0:00:00]} Be6 {[%emt 0:00:00]} 59. Rxg8 {[%emt 0:00:00]} Bxg8 {[%emt 0:00:00]} 60. Nd2 {[%emt 0:00:00]} Kc6 {[%emt 0:00:00]} 61. Kd1 {[%emt 0:00:00]} Kd7 {[%emt 0:00:00]} 62. Ke2 {[%emt 0:00:00]} Ke6 {[%emt 0:00:00]} 63. Kf3 {[%emt 0:00:00]} Kf6 {[%emt 0:00:00]} 64. Kg4 {[%emt 0:00:00]} Bf7 {[%emt 0:00:00]} 65. Kh4 {[%emt 0:00:00]} Kg6 {[%emt 0:00:00]} 66. Kg4 {[%emt 0:00:00]} Kf6 {[%emt 0:00:00]} 67. Kh4 {[%emt 0:00:00]} Kg6 {[%emt 0:00:00]} 68. Nc4 {[%emt 0:00:00]} Bxc4 {[%emt 0:00:00]} 69. dxc4 {[%emt 0:00:00]} Kh6 {[%emt 0:00:00]} 1/2-1/2

[Event "WYCC U14 Girls 2019"]
[Site "Mumbai"]
[Date "2019.10.12"]
[Round "11.11"]
[White "Hakobyan, Astghik"]
[Black "Marium Fatima"]
[Result "1-0"]
[ECO "C18"]
[WhiteElo "1978"]
[BlackElo "1628"]
[Annotator "NA"]
[PlyCount "89"]
[EventDate "2019.10.02"]
[EventType "swiss"]
[EventCountry "IND"]
[SourceTitle "playchess.com"]
[Source "ChessBase"]
[SourceQuality "1"]
[TimeControl "40/5400+30:1800+30"]

1. e4 e6 2. d4 d5 3. Nc3 Bb4 4. e5 c5 5. a3 Bxc3+ 6. bxc3 Ne7 7. Qg4 O-O 8. Nf3 c4 9. h4 Nbc6 10. h5 Qa5 11. Bd2 f5 12. Qf4 Bd7 13. Rg1 Kf7 14. Ng5+ Ke8 15. h6 gxh6 16. Nxh7 Rh8 17. Qxh6 Kd8 18. Qg7 Kc7 19. Nf6 Rad8 20. Be2 Qa4 21. Kd1 Qb5 22. Kc1 Qa5 23. Bh5 Kc8 24. Bf7 a6 25. Nxd7 Kxd7 26. Qf6 Kc7 27. Bxe6 Rdf8 28. Bf7 Kb8 29. e6 Ka8 30. Kb2 Qb5+ 31. Kc1 Qa5 32. f3 Nc8 33. Qxf5 Nd6 34. Qf6 Nxf7 35. exf7 Rh7 36. f4 Rhxf7 37. Qh4 Qb6 38. Qf2 Ne7 39. Qf3 Qd6 40. g4 Ng6 41. f5 Ne7 42. Kb2 Qb6+ 43. Ka2 Qa5 44. Rg2 Nc6 45. Bf4 1-0